fUST/lending_fUST_20250427
["ID","MTS","AMOUNT","RATE_DAILY","PERIOD"]
[359127599,1745723442937,-400.0,0.0001726,2]
[359127600,1745723442947,-400.0,0.0001726,2]
[359127601,1745723442955,-400.0,0.0001726,2]
[359127602,1745723442964,-400.0,0.0001726,2]
[359127603,1745723442973,-400.0,0.0001726,2]
[359127604,1745723442982,-400.0,0.0001726,2]
[359127605,1745723442995,-477.67,0.0001726,2]
[359127606,1745723443005,-400.0,0.0001726,2]
[359127607,1745723443016,-400.0,0.0001726,2]
[359127608,1745723443026,-400.0,0.0001726,2]
[359127609,1745723443038,-400.0,0.0001726,2]
[359127610,1745723443048,-602.71,0.0001726,2]
[359127611,1745723443058,-400.0,0.0001726,2]
[359127612,1745723443069,-400.0,0.0001726,2]
[359127613,1745723443078,-400.0,0.0001726,2]
[359127614,1745723443088,-400.0,0.0001726,2]
[359127615,1745723443098,-400.0,0.0001726,2]
[359127616,1745723443107,-400.0,0.0001726,2]
[359127617,1745723443117,-400.0,0.0001726,2]
[359127618,1745723443126,-400.0,0.0001726,2]
[359127619,1745723443136,-400.0,0.0001726,2]
[359127620,1745723443145,-400.0,0.0001726,2]
[359127621,1745723443155,-533.09,0.0001726,2]
[359127622,1745723443165,-400.0,0.0001726,2]
[359127623,1745723443175,-400.0,0.0001726,2]
[359127624,1745723443185,-400.0,0.0001726,2]
[359127625,1745723443195,-400.0,0.0001726,2]
[359127626,1745723443205,-200.0,0.0001726,2]
[359127627,1745723443215,-400.0,0.0001726,2]
[359127628,1745723443226,-500.0,0.0001726,2]
[359127629,1745723443238,-400.0,0.0001726,2]
[359127630,1745723443250,-400.0,0.0001726,2]
[359127631,1745723443261,-500.0,0.0001726,2]
[359127632,1745723443271,-400.0,0.0001726,2]
[359127633,1745723443281,-400.0,0.0001726,2]
[359127634,1745723443290,-200.0,0.0001726,2]
[359127635,1745723443299,-400.0,0.0001726,2]
[359127636,1745723443309,-400.0,0.0001726,2]
[359127637,1745723443318,-703.73,0.0001726,2]
[359127638,1745723443329,-167.87,0.0001726,2]
[359127640,1745723443338,-400.0,0.0001726,2]
[359127641,1745723443348,-400.0,0.0001726,2]
[359127643,1745723443357,-400.0,0.0001726,2]
[359127645,1745723443367,-400.0,0.0001726,2]
[359127646,1745723443376,-400.0,0.00017534,2]
[359127647,1745723443386,-400.0,0.00017534,2]
[359127648,1745723443395,-400.0,0.00017534,2]
[359127649,1745723443405,-400.0,0.00017534,2]
[359127650,1745723443415,-400.0,0.00017534,2]
[359127651,1745723443424,-400.0,0.00017534,2]
[359127652,1745723443434,-400.0,0.00017534,2]
[359127653,1745723443444,-400.0,0.00017534,2]
[359127654,1745723443453,-400.0,0.00017534,2]
[359127656,1745723443463,-400.0,0.00017534,2]
[359127657,1745723443472,-305.79130885,0.00017534,2]
[359127658,1745723443482,-321.84453013,0.00017534,2]
[359127659,1745723443491,-318.22271981,0.00017534,2]
[359127660,1745723443501,-400.0,0.00017534,2]
[359127661,1745723443510,-400.0,0.00017534,2]
[359127662,1745723443520,-400.0,0.00017534,2]
[359127663,1745723443529,-479.16006213,0.00017534,2]
[359127664,1745723443537,-483.39980063,0.00017534,2]
[359127665,1745723443546,-400.0,0.00017534,2]
[359127666,1745723443555,-400.0,0.00017534,2]
[359127667,1745723443563,-400.0,0.00017534,2]
[359127668,1745723443572,-400.0,0.00017534,2]
[359127669,1745723443582,-400.0,0.00017534,2]
[359127670,1745723443591,-400.0,0.00017534,2]
[359127671,1745723443602,-400.0,0.00017534,2]
[359127672,1745723443611,-400.0,0.00017534,2]
[359127673,1745723443621,-400.0,0.00017534,2]
[359127674,1745723443632,-400.0,0.00017534,2]
[359127675,1745723443642,-400.0,0.00017534,2]
[359127676,1745723443652,-400.0,0.00017534,2]
[359127677,1745723443661,-400.0,0.00017534,2]
[359127678,1745723443671,-400.0,0.00017534,2]
[359127679,1745723443681,-400.0,0.00017534,2]
[359127680,1745723443691,-400.0,0.00017534,2]
[359127681,1745723443701,-400.0,0.00017534,2]
[359127682,1745723443711,-400.0,0.00017534,2]
[359127683,1745723443720,-400.0,0.00017534,2]
[359127684,1745723443730,-400.0,0.00017534,2]
[359127685,1745723443740,-400.0,0.00017534,2]
[359127686,1745723443750,-436.0,0.00017534,2]
[359127687,1745723443759,-400.0,0.00017534,2]
[359127688,1745723443769,-400.0,0.00017534,2]
[359127689,1745723443778,-400.0,0.00017534,2]
[359127690,1745723443788,-400.0,0.00017534,2]
[359127691,1745723443798,-400.0,0.00017534,2]
[359127692,1745723443807,-400.0,0.00017534,2]
[359127693,1745723443817,-400.0,0.00017534,2]
[359127694,1745723443826,-477.67,0.00017534,2]
[359127695,1745723443836,-400.0,0.00017534,2]
[359127696,1745723443845,-400.0,0.00017534,2]
[359127697,1745723443855,-400.0,0.00017534,2]
[359127698,1745723443865,-400.0,0.00017534,2]
[359127699,1745723443875,-602.71,0.00017534,2]
[359127700,1745723443884,-400.0,0.00017534,2]
[359127701,1745723443894,-400.0,0.00017534,2]
[359127702,1745723443904,-400.0,0.00017534,2]
[359127703,1745723443913,-400.0,0.00017534,2]
[359127704,1745723443923,-400.0,0.00017534,2]
[359127705,1745723443933,-400.0,0.00017534,2]
[359127706,1745723443943,-400.0,0.00017534,2]
[359127707,1745723443952,-400.0,0.00017534,2]
[359127708,1745723443962,-400.0,0.00017534,2]
[359127709,1745723443971,-400.0,0.00017534,2]
[359127711,1745723443981,-400.0,0.00017534,2]
[359127713,1745723443993,-400.0,0.00017534,2]
[359127715,1745723444003,-400.0,0.00017534,2]
[359127718,1745723444015,-400.0,0.00017534,2]
[359127719,1745723444025,-400.0,0.00017534,2]
[359127721,1745723444035,-400.0,0.00017534,2]
[359127723,1745723444044,-400.0,0.00017534,2]
[359127725,1745723444054,-177.03,0.00017534,2]
[359127726,1745723444064,-400.0,0.00017534,2]
[359127727,1745723444075,-400.0,0.00017534,2]
[359127728,1745723444085,-475.4777814,0.00017534,2]
[359127729,1745723444094,-703.73,0.00017534,2]
[359127730,1745723444104,-400.0,0.00017534,2]
[359127731,1745723444255,-400.0,0.00017534,2]
[359127732,1745723444265,-400.0,0.00017534,2]
[359127733,1745723444276,-160.0,0.00017542,2]
[359127734,1745723444287,-12584.55399671,0.00017542,2]
[359127735,1745723444297,-840.47993636,0.00017542,2]
[359127736,1745723444307,-421.1409203,0.00017542,2]
[359127737,1745723444318,-160.0,0.00017542,2]
[359127738,1745723444328,-160.0,0.00017542,2]
[359127739,1745723444339,-500.0,0.00017573,2]
[359127740,1745723444349,-431.78433194,0.00017573,2]
[359127741,1745723444359,-376.82443631,0.00017573,2]
[359127742,1745723444368,-500.0,0.00017573,2]
[359127743,1745723444378,-500.0,0.00017573,2]
[359127744,1745723444388,-500.0,0.00017573,2]
[359127745,1745723444398,-500.0,0.00017573,2]
[359127746,1745723444408,-500.0,0.00017573,2]
[359127747,1745723444417,-500.0,0.00017573,2]
[359127748,1745723444428,-500.0,0.00017573,2]
[359127749,1745723444437,-367.07775535,0.00017573,2]
[359127750,1745723444447,-500.0,0.00017573,2]
[359127751,1745723444458,-500.0,0.00017573,2]
[359127752,1745723444470,-274.64769057,0.00017693,2]
[359127753,1745723444481,-500.0,0.00017808,2]
[359127754,1745723444490,-400.0,0.00017808,2]
[359127755,1745723444500,-465.93244426,0.00017808,2]
[359127756,1745723444509,-400.0,0.00017808,2]
[359127757,1745723444519,-400.0,0.00017808,2]
[359127758,1745723444529,-400.0,0.00017808,2]
[359127759,1745723444539,-400.0,0.00017808,2]
[359127760,1745723444551,-400.0,0.00017808,2]
[359127761,1745723444561,-400.0,0.00017808,2]
[359127762,1745723444571,-400.0,0.00017808,2]
[359127763,1745723444580,-400.0,0.00017808,2]
[359127764,1745723444590,-400.0,0.00017808,2]
[359127765,1745723444599,-400.0,0.00017808,2]
[359127766,1745723444609,-400.0,0.00017808,2]
[359127767,1745723444618,-400.0,0.00017808,2]
[359127768,1745723444628,-400.0,0.00017808,2]
[359127769,1745723444638,-400.0,0.00017808,2]
[359127770,1745723444647,-400.0,0.00017808,2]
[359127771,1745723444657,-308.17537125,0.00017808,2]
[359127772,1745723444668,-400.0,0.00017808,2]
[359127773,1745723444679,-400.0,0.00017808,2]
[359127774,1745723444691,-400.0,0.00017808,2]
[359127775,1745723444701,-400.0,0.00017808,2]
[359127776,1745723444710,-305.70003124,0.00017808,2]
[359127777,1745723444720,-400.0,0.00017808,2]
[359127778,1745723444729,-400.0,0.00017808,2]
[359127779,1745723444739,-400.0,0.00017808,2]
[359127780,1745723444749,-274.45827738,0.00017808,2]
[359127781,1745723444759,-400.0,0.00017808,2]
[359127782,1745723444769,-387.73962494,0.00017808,2]
[359127783,1745723444779,-400.0,0.00017808,2]
[359127784,1745723444789,-407.94440552,0.00017808,2]
[359127785,1745723444801,-400.0,0.00017808,2]
[359127786,1745723444812,-400.0,0.00017808,2]
[359127787,1745723444822,-436.0,0.00017808,2]
[359127788,1745723444831,-156.77,0.00017808,2]
[359127789,1745723444841,-400.0,0.00017808,2]
[359127790,1745723444851,-400.0,0.00017808,2]
[359127791,1745723444861,-400.0,0.00017808,2]
[359127792,1745723444872,-400.0,0.00017808,2]
[359127793,1745723444881,-400.0,0.00017808,2]
[359127794,1745723444892,-400.0,0.00017808,2]
[359127795,1745723444901,-477.67,0.00017808,2]
[359127796,1745723444911,-400.0,0.00017808,2]
[359127797,1745723444921,-400.0,0.00017808,2]
[359127798,1745723444931,-400.0,0.00017808,2]
[359127799,1745723444941,-400.0,0.00017808,2]
[359127800,1745723444950,-602.71,0.00017808,2]
[359127801,1745723444960,-400.0,0.00017808,2]
[359127802,1745723444969,-400.0,0.00017808,2]
[359127803,1745723444979,-400.0,0.00017808,2]
[359127804,1745723444991,-465.45922116,0.00017808,2]
[359127805,1745723445001,-400.0,0.00017808,2]
[359127806,1745723445011,-400.0,0.00017808,2]
[359127807,1745723445021,-178.84341369,0.00017808,2]
[359127808,1745723445031,-400.0,0.00017808,2]
[359127809,1745723445043,-400.0,0.00017808,2]
[359127810,1745723445054,-400.0,0.00017808,2]
[359127811,1745723445065,-400.0,0.00017808,2]
[359127812,1745723445076,-400.0,0.00017808,2]
[359127813,1745723445086,-400.0,0.00017808,2]
[359127814,1745723445097,-400.0,0.00017808,2]
[359127815,1745723445108,-400.0,0.00017808,2]
[359127816,1745723445117,-400.0,0.00017808,2]
[359127817,1745723445126,-400.0,0.00017808,2]
[359127818,1745723445137,-400.0,0.00017808,2]
[359127819,1745723445146,-400.0,0.00017808,2]
[359127820,1745723445156,-703.73,0.00017808,2]
[359127821,1745723445165,-400.0,0.00017808,2]
[359127822,1745723445175,-535.44748934,0.00017808,2]
[359127823,1745723445185,-400.0,0.00017808,2]
[359127824,1745723445194,-400.0,0.00018082,2]
[359127825,1745723445204,-400.0,0.00018082,2]
[359127826,1745723445214,-400.0,0.00018082,2]
[359127827,1745723445223,-400.0,0.00018082,2]
[359127828,1745723445233,-400.0,0.00018082,2]
[359127829,1745723445243,-400.0,0.00018082,2]
[359127830,1745723445252,-500.0,0.00018082,2]
[359127831,1745723445262,-400.0,0.00018082,2]
[359127832,1745723445272,-400.0,0.00018082,2]
[359127833,1745723445281,-400.0,0.00018082,2]
[359127834,1745723445291,-299.65280227,0.00018082,2]
[359127835,1745723445300,-400.0,0.00018082,2]
[359127836,1745723445310,-400.0,0.00018082,2]
[359127837,1745723445320,-200.0,0.00018082,2]
[359127838,1745723445330,-400.0,0.00018082,2]
[359127839,1745723445340,-400.0,0.00018082,2]
[359127840,1745723445352,-400.0,0.00018082,2]
[359127841,1745723445361,-400.0,0.00018082,2]
[359127842,1745723445370,-414.09367529,0.00018082,2]
[359127843,1745723445380,-400.0,0.00018082,2]
[359127844,1745723445389,-400.0,0.00018082,2]
[359127845,1745723445399,-400.0,0.00018082,2]
[359127846,1745723445408,-400.0,0.00018082,2]
[359127847,1745723445418,-400.0,0.00018082,2]
[359127848,1745723445428,-400.0,0.00018082,2]
[359127849,1745723445438,-400.0,0.00018082,2]
[359127850,1745723445448,-400.0,0.00018082,2]
[359127851,1745723445458,-436.0,0.00018082,2]
[359127852,1745723445467,-400.0,0.00018082,2]
[359127853,1745723445476,-400.0,0.00018082,2]
[359127854,1745723445488,-400.0,0.00018082,2]
[359127855,1745723445497,-400.0,0.00018082,2]
[359127856,1745723445507,-400.0,0.00018082,2]
[359127857,1745723445516,-477.67,0.00018082,2]
[359127858,1745723445525,-400.0,0.00018082,2]
[359127859,1745723445534,-400.0,0.00018082,2]
[359127860,1745723445543,-400.0,0.00018082,2]
[359127861,1745723445553,-400.0,0.00018082,2]
[359127862,1745723445561,-602.71,0.00018082,2]
[359127863,1745723445570,-400.0,0.00018082,2]
[359127864,1745723445580,-400.0,0.00018082,2]
[359127865,1745723445589,-400.0,0.00018082,2]
[359127866,1745723445598,-400.0,0.00018082,2]
[359127867,1745723445608,-400.0,0.00018082,2]
[359127868,1745723445617,-400.0,0.00018082,2]
[359127869,1745723445627,-400.0,0.00018082,2]
[359127870,1745723445636,-400.0,0.00018082,2]
[359127871,1745723445646,-400.0,0.00018082,2]
[359127873,1745723445655,-400.0,0.00018082,2]
[359127875,1745723445665,-400.0,0.00018082,2]
[359127877,1745723445674,-400.0,0.00018082,2]
[359127879,1745723445683,-400.0,0.00018082,2]
[359127881,1745723445693,-400.0,0.00018082,2]
[359127883,1745723445702,-345.02,0.00018082,2]
[359127885,1745723445712,-328.94583327,0.00018082,2]
[359127887,1745723445722,-400.0,0.00018082,2]
[359127888,1745723445737,-703.73,0.00018082,2]
[359127890,1745723445747,-232.08650116,0.00018082,2]
[359127891,1745723445756,-400.0,0.00018082,2]
[359127892,1745723445765,-400.0,0.00018356,2]
[359127893,1745723445775,-400.0,0.00018356,2]
[359127894,1745723445785,-390.05510446,0.00018356,2]
[359127895,1745723445794,-400.0,0.00018356,2]
[359127896,1745723445804,-517.34594304,0.00018356,2]
[359127898,1745723445814,-400.0,0.00018356,2]
[359127899,1745723445823,-400.0,0.00018356,2]
[359127901,1745723445833,-526.65431022,0.00018356,2]
[359127903,1745723445844,-231.41,0.00018356,2]
[359127905,1745723445854,-400.0,0.00018356,2]
[359127906,1745723445863,-400.0,0.00018356,2]
[359127907,1745723445872,-400.0,0.00018356,2]
[359127908,1745723445882,-400.0,0.00018356,2]
[359127909,1745723445892,-414.63679104,0.00018356,2]
[359127910,1745723445901,-290.8093172,0.00018356,2]
[359127923,1745723446035,-400.0,0.0001726,2]
[359127925,1745723446045,-400.0,0.00017534,2]
[359127927,1745723446054,-400.0,0.00017808,2]
[359127929,1745723446064,-400.0,0.00018082,2]
[359127931,1745723446074,-109.1906828,0.00018356,2]
[359127933,1745723446084,-400.0,0.00018356,2]
[359127935,1745723446094,-400.0,0.00018356,2]
[359127937,1745723446104,-400.0,0.00018356,2]
[359127939,1745723446114,-292.14559606,0.00018356,2]
[359127941,1745723446125,-468.20593849,0.00018356,2]
[359127942,1745723446134,-400.0,0.00018356,2]
[359127945,1745723446145,-400.0,0.00018356,2]
[359127946,1745723446155,-436.0,0.00018356,2]
[359127949,1745723446165,-400.0,0.00018356,2]
[359127951,1745723446175,-249.44,0.00018356,2]
[359127952,1745723446184,-400.0,0.00018356,2]
[359127955,1745723446194,-197.85,0.00018356,2]
[359127957,1745723446204,-477.67,0.00018356,2]
[359127959,1745723446213,-400.0,0.00018356,2]
[359127960,1745723446222,-400.0,0.00018356,2]
[359127962,1745723446232,-400.0,0.00018356,2]
[359127964,1745723446241,-400.0,0.00018356,2]
[359127966,1745723446250,-602.71,0.00018356,2]
[359127968,1745723446258,-400.0,0.00018356,2]
[359127970,1745723446267,-400.0,0.00018356,2]
[359127971,1745723446278,-400.0,0.00018356,2]
[359127972,1745723446287,-400.0,0.00018356,2]
[359127973,1745723446295,-398.48,0.00018356,2]
[359127975,1745723446304,-154.72,0.00018356,2]
[359127977,1745723446313,-400.0,0.00018356,2]
[359127979,1745723446322,-400.0,0.00018356,2]
[359127981,1745723446332,-400.0,0.00018356,2]
[359127983,1745723446341,-400.0,0.00018356,2]
[359127985,1745723446350,-344.15,0.00018356,2]
[359127987,1745723446359,-400.0,0.00018356,2]
[359127989,1745723446368,-403.99,0.00018356,2]
[359127990,1745723446377,-200.0,0.00018356,2]
[359127992,1745723446387,-400.0,0.00018356,2]
[359127994,1745723446396,-703.73,0.00018356,2]
[359127996,1745723446405,-400.0,0.00018356,2]
[359127998,1745723446414,-346.02,0.00018356,2]
[359128000,1745723446423,-274.64769057,0.00018486,2]
[359128002,1745723446432,-155.06663733,0.0001863,2]
[359128004,1745723446443,-400.0,0.0001863,2]
[359128005,1745723446452,-200.0,0.0001863,2]
[359128007,1745723446460,-167.46298324,0.0001863,2]
[359128009,1745723446469,-400.0,0.0001863,2]
[359128011,1745723446478,-200.75498207,0.0001863,2]
[359128013,1745723446487,-504.31084141,0.0001863,2]
[359128015,1745723446496,-348.3,0.0001863,2]
[359128017,1745723446505,-400.0,0.0001863,2]
[359128019,1745723446514,-400.0,0.0001863,2]
[359128021,1745723446525,-528.99856755,0.0001863,2]
[359128023,1745723446534,-173.28,0.0001863,2]
[359128025,1745723446543,-272.91,0.0001863,2]
[359128027,1745723446552,-436.0,0.0001863,2]
[359128029,1745723446561,-400.0,0.0001863,2]
[359128031,1745723446571,-400.0,0.0001863,2]
[359128033,1745723446580,-477.67,0.0001863,2]
[359128035,1745723446590,-400.0,0.0001863,2]
[359128037,1745723446600,-400.0,0.0001863,2]
[359128039,1745723446610,-400.0,0.0001863,2]
[359128041,1745723446620,-400.0,0.0001863,2]
[359128043,1745723446630,-602.71,0.0001863,2]
[359128045,1745723446640,-400.0,0.0001863,2]
[359128047,1745723446649,-200.0,0.0001863,2]
[359128048,1745723446658,-200.0,0.0001863,2]
[359128049,1745723446667,-400.0,0.0001863,2]
[359128050,1745723446677,-400.0,0.0001863,2]
[359128051,1745723446687,-200.0,0.0001863,2]
[359128052,1745723446696,-400.0,0.0001863,2]
[359128053,1745723446706,-400.0,0.0001863,2]
[359128054,1745723446716,-400.0,0.0001863,2]
[359128055,1745723446725,-400.0,0.0001863,2]
[359128056,1745723446735,-703.73,0.0001863,2]
[359128057,1745723446745,-400.0,0.0001863,2]
[359128058,1745723446755,-177.335559,0.00018686,2]
[359128059,1745723446764,-351.86359084,0.00018904,2]
[359128060,1745723446773,-400.0,0.00018904,2]
[359128061,1745723446783,-213.63131736,0.00018904,2]
[359128062,1745723446792,-400.0,0.00018904,2]
[359128063,1745723446801,-436.0,0.00018904,2]
[359128064,1745723446812,-261.84055703,0.00018904,2]
[359128065,1745723446821,-431.34,0.00018904,2]
[359128066,1745723446830,-477.67,0.00018904,2]
[359128067,1745723446839,-200.0,0.00018904,2]
[359128068,1745723446848,-400.0,0.00018904,2]
[359128069,1745723446857,-228.96,0.00018904,2]
[359128070,1745723446866,-200.0,0.00018904,2]
[359128071,1745723446875,-602.71,0.00018904,2]
[359128072,1745723446884,-400.0,0.00018904,2]
[359128073,1745723446895,-400.0,0.00018904,2]
[359128074,1745723446904,-259.73063273,0.00018904,2]
[359128075,1745723446913,-400.0,0.00018904,2]
[359128076,1745723446923,-479.48900605,0.00018904,2]
[359128077,1745723446933,-400.0,0.00018904,2]
[359128078,1745723446942,-400.0,0.00018904,2]
[359128079,1745723446951,-703.73,0.00018904,2]
[359128080,1745723446961,-400.0,0.00018904,2]
[359128081,1745723446970,-386.02092806,0.00019178,2]
[359128082,1745723446979,-345.98,0.00019178,2]
[359128083,1745723446990,-436.0,0.00019178,2]
[359128084,1745723447001,-477.67,0.00019178,2]
[359128085,1745723447011,-341.37712813,0.00019178,2]
[359128086,1745723447021,-602.71,0.00019178,2]
[359128087,1745723447030,-400.0,0.00019178,2]
[359128088,1745723447040,-400.0,0.00019178,2]
[359128089,1745723447050,-406.02,0.00019178,2]
[359128090,1745723447059,-400.0,0.00019178,2]
[359128091,1745723447072,-400.0,0.00019178,2]
[359128092,1745723447082,-703.73,0.00019178,2]
[359128093,1745723447092,-400.0,0.00019178,2]
[359128094,1745723447102,-300.0,0.00019178,2]
[359128095,1745723447111,-274.64769057,0.00019279,2]
[359128096,1745723447120,-436.0,0.00019452,2]
[359128097,1745723447129,-477.67,0.00019452,2]
[359128098,1745723447141,-602.71,0.00019452,2]
[359128099,1745723447150,-400.0,0.00019452,2]
[359128100,1745723447161,-400.0,0.00019452,2]
[359128101,1745723447170,-400.0,0.00019452,2]
[359128102,1745723447180,-400.0,0.00019452,2]
[359128103,1745723447190,-703.73,0.00019452,2]
[359128104,1745723447199,-400.0,0.00019452,2]
[359128105,1745723447208,-436.0,0.00019726,2]
[359128106,1745723447218,-477.67,0.00019726,2]
[359128107,1745723447227,-602.71,0.00019726,2]
[359128108,1745723447236,-400.0,0.00019726,2]
[359128109,1745723447245,-544.28441917,0.00019726,2]
[359128110,1745723447255,-311.85343812,0.00019726,2]
[359128111,1745723447264,-400.0,0.00019726,2]
[359128112,1745723447273,-703.73,0.00019726,2]
[359128113,1745723447283,-400.0,0.00019726,2]
[359128114,1745723447293,-436.0,0.0002,2]
[359128115,1745723447303,-477.67,0.0002,2]
[359128116,1745723447312,-602.71,0.0002,2]
[359128117,1745723447322,-400.0,0.0002,2]
[359128118,1745723447332,-400.0,0.0002,2]
[359128119,1745723447342,-703.73,0.0002,2]
[359128120,1745723447352,-400.0,0.0002,2]
[359128121,1745723447361,-274.64769057,0.00020072,2]
[359128122,1745723447371,-190.56299616,0.00020206,2]
[359128123,1745723447380,-436.0,0.00020273,2]
[359128124,1745723447390,-477.67,0.00020273,2]
[359128125,1745723447400,-602.71,0.00020273,2]
[359128126,1745723447413,-458.2,0.00020273,2]
[359128127,1745723447422,-400.0,0.00020273,2]
[359128128,1745723447431,-703.73,0.00020273,2]
[359128129,1745723447440,-400.0,0.00020273,2]
[359128130,1745723447449,-436.0,0.00020547,2]
[359128131,1745723447459,-477.67,0.00020547,2]
[359128132,1745723447468,-602.71,0.00020547,2]
[359128133,1745723447478,-400.0,0.00020547,2]
[359128134,1745723447487,-703.73,0.00020547,2]
[359128135,1745723447498,-400.0,0.00020547,2]
[359128136,1745723447507,-436.0,0.00020821,2]
[359128137,1745723447517,-477.67,0.00020821,2]
[359128138,1745723447526,-602.71,0.00020821,2]
[359128139,1745723447536,-400.0,0.00020821,2]
[359128140,1745723447545,-703.73,0.00020821,2]
[359128141,1745723447555,-528.02195347,0.00020821,2]
[359128142,1745723447565,-600.0,0.00020822,2]
[359128143,1745723447574,-274.64769057,0.00020866,3]
[359128144,1745723447584,-157.46,0.00021,2]
[359128145,1745723447724,-184.0,0.00021,3]
[359128146,1745723447737,-184.96112393,0.00021,4]
[359128147,1745723447747,-436.0,0.00021095,2]
[359128148,1745723447757,-477.67,0.00021095,2]
[359128149,1745723447767,-602.71,0.00021095,2]
[359128150,1745723447776,-400.0,0.00021095,2]
[359128151,1745723447787,-703.73,0.00021095,2]
[359128152,1745723447797,-800.0,0.00021164,2]
[359128153,1745723447806,-436.0,0.00021369,2]
[359128154,1745723447816,-477.67,0.00021369,2]
[359128155,1745723447825,-602.71,0.00021369,2]
[359128156,1745723447835,-535.00808896,0.00021369,2]
[359128157,1745723447845,-703.73,0.00021369,2]
[359128158,1745723447855,-150.09,0.00021434,2]
[359128159,1745723447866,-150.0,0.00021434,2]
[359128160,1745723447875,-150.75,0.00021434,2]
[359128161,1745723447885,-545.0,0.00021434,2]
[359128162,1745723447894,-1839.369,0.00021434,2]
[359128163,1745723447904,-562.0,0.00021573,15]
[359128164,1745723447913,-723.2916588,0.00021614,2]
[359128165,1745723447923,-436.0,0.00021643,2]
[359128166,1745723447934,-477.67,0.00021643,2]
[359128167,1745723447943,-602.71,0.00021643,2]
[359128168,1745723447953,-703.73,0.00021643,2]
[359128169,1745723447963,-274.64769057,0.00021659,3]
[359128170,1745723447973,-151.0,0.000219,2]
[359128171,1745723447986,-160.0,0.00021917,2]
[359128172,1745723448003,-436.0,0.00021917,2]
[359128173,1745723448013,-477.67,0.00021917,2]
[359128174,1745723448023,-602.71,0.00021917,2]
[359128175,1745723448032,-703.73,0.00021917,2]
[359128176,1745723448042,-500.0,0.00021973,2]
[359128177,1745723448052,-500.0,0.00021973,2]
[359128178,1745723448062,-500.0,0.00021973,2]
[359128179,1745723448071,-500.93018312,0.00021973,2]
[359128180,1745723448082,-29101.98240298,0.00022,2]
[359128181,1745723448092,-151.0,0.00022,7]
[359128182,1745723448102,-151.0,0.00022,7]
[359128183,1745723448112,-3563.12,0.00022,2]
[359128184,1745723448122,-160.0,0.00022,8]
[359128185,1745723448133,-151.0,0.00022,7]
[359128186,1745723448143,-151.0,0.00022,7]
[359128187,1745723448153,-151.0,0.00022,7]
[359128188,1745723448163,-151.0,0.00022,7]
[359128189,1745723448174,-130358.86630712,0.00022,2]
[359128190,1745723449776,-136.10837289,0.00022,2]
[359128191,1745723449880,-8839.31277,0.00022,2]
[359128192,1745723449890,-477.67,0.00022191,2]
[359128193,1745723449902,-602.71,0.00022191,2]
[359128194,1745723449913,-703.73,0.00022191,2]